bitfinex-derivatives/quotes_BTCF0:USTF0_20250509
["timestamp","ask_amount","ask_price","bid_price","bid_amount"]
[1746794164996,1.0374243,103120.0,103110.0,0.14009023]
[1746794165299,1.0374243,103120.0,103110.0,0.14009021]
[1746794165591,1.0364243,103120.0,103110.0,0.13509021]
[1746794165797,1.0364243,103120.0,103110.0,0.15167232]
[1746794165997,1.0364243,103120.0,103110.0,0.15167512]
[1746794166193,1.0354243,103120.0,103110.0,0.14767512]
[1746794167800,1.0354243,103120.0,103110.0,0.09307512]
[1746794168499,1.0354243,103120.0,103110.0,0.20552105]
[1746794168703,1.0354243,103120.0,103110.0,0.20552103]
[1746794168897,0.8775778,103120.0,103110.0,0.20552103]
[1746794169092,0.8775778,103120.0,103110.0,0.39951773]
[1746794169093,0.74240105,103120.0,103110.0,0.39951773]
[1746794169300,0.74240105,103120.0,103110.0,0.49649683]
[1746794169502,0.81626241,103120.0,103110.0,0.49649644]
[1746794169804,0.76126241,103120.0,103110.0,0.49649644]
[1746794169997,0.68233916,103120.0,103110.0,0.49649644]
[1746794170192,0.68233916,103120.0,103110.0,0.57541969]
[1746794170397,0.32153916,103120.0,103110.0,0.93621969]
[1746794170797,0.26783916,103120.0,103110.0,0.93621969]
[1746794171010,0.26298774,103120.0,103110.0,0.93621969]
[1746794171198,0.25571079,103120.0,103110.0,1.11138001]
[1746794171606,0.25571079,103120.0,103110.0,1.03245676]
[1746794171903,0.25571079,103120.0,103110.0,1.28677181]
[1746794172100,0.25571079,103120.0,103110.0,1.28676979]
[1746794172400,0.25571079,103120.0,103110.0,1.12676979]
[1746794173896,0.25571079,103120.0,103110.0,1.00633428]
[1746794174297,0.18184943,103120.0,103110.0,1.00633428]
[1746794174705,0.18184943,103120.0,103110.0,1.12676933]
[1746794174901,0.18184943,103120.0,103110.0,1.1267697]
[1746794175204,0.18184943,103120.0,103110.0,1.13772942]
[1746794175406,0.18184943,103120.0,103110.0,1.15288976]
[1746794176405,0.18184943,103120.0,103110.0,1.12672976]
[1746794176814,0.18184943,103120.0,103110.0,1.11156942]
[1746794177003,0.18184943,103120.0,103110.0,1.0964091]
[1746794177303,0.18184943,103120.0,103110.0,0.97597405]
[1746794177506,0.23604943,103120.0,103110.0,0.78197735]
[1746794177704,0.35648448,103120.0,103110.0,0.78197735]
[1746794177898,0.41508448,103120.0,103110.0,0.78197735]
[1746794178100,0.57508448,103120.0,103110.0,0.78197735]
[1746794178898,0.57508448,103120.0,103110.0,0.28533735]
[1746794179095,0.93588448,103120.0,103110.0,0.11256121]
[1746794179403,0.1940155,103100.0,103090.0,0.3608]
[1746794179599,0.67525055,103100.0,103090.0,0.1131]
[1746794179798,0.73095055,103100.0,103090.0,0.1131]
[1746794180007,0.73095055,103100.0,103090.0,0.2100791]
[1746794180008,0.78695055,103100.0,103090.0,0.2100791]
[1746794180194,0.94695055,103100.0,103090.0,0.2100791]
[1746794180598,0.94695055,103100.0,103090.0,0.1519791]
[1746794181205,0.94695055,103100.0,103090.0,0.1529791]
[1746794181803,0.8265155,103100.0,103090.0,0.1529791]
[1746794182004,0.94695055,103100.0,103090.0,0.2075791]
[1746794182307,0.94695055,103100.0,103090.0,0.0999791]
[1746794182706,0.95666732,103100.0,103090.0,0.0999791]
[1746794183308,0.95666732,103100.0,103090.0,0.11423701]
[1746794184214,0.95666732,103100.0,103090.0,0.22453701]
[1746794184510,0.95666732,103100.0,103090.0,0.28133701]
[1746794185011,1.03052868,103100.0,103090.0,0.28133701]
[1746794186712,1.03779868,103100.0,103090.0,0.28133701]
[1746794187814,0.96393732,103100.0,103090.0,0.28133701]
[1746794191114,0.80393732,103100.0,103090.0,0.28133701]
[1746794192815,0.80393732,103100.0,103090.0,0.22453701]
[1746794193016,0.80393732,103100.0,103090.0,0.16833701]
[1746794193219,0.80393732,103100.0,103090.0,0.11423701]
[1746794194109,0.96393732,103100.0,103090.0,0.11423701]
[1746794195115,0.80393732,103100.0,103090.0,0.11423701]
[1746794196510,0.44313732,103100.0,103090.0,0.11423701]
[1746794196815,0.80393732,103100.0,103090.0,0.0173535]
[1746794197116,1.32473732,103100.0,103090.0,1e-07]
[1746794198913,1.39859868,103100.0,103090.0,1e-07]
[1746794199217,1.23859868,103100.0,103090.0,1e-07]
[1746794201122,1.39859868,103100.0,103090.0,1e-07]
[1746794201719,1.27816363,103100.0,103090.0,1e-07]
[1746794201917,1.39859868,103100.0,103090.0,1e-07]
[1746794202107,1.23859868,103100.0,103090.0,1e-07]
[1746794202713,1.11816363,103100.0,103090.0,1e-07]
[1746794202913,1.11816363,103100.0,103090.0,0.20539801]
[1746794203223,0.33114686,103100.0,103090.0,0.51986736]
[1746794203711,0.33114686,103100.0,103090.0,2.01986736]
[1746794203911,0.33114686,103100.0,103090.0,0.51986736]
[1746794204107,0.33114686,103100.0,103090.0,0.76023231]
[1746794204313,0.33114686,103100.0,103090.0,0.92023231]
[1746794204620,0.33114686,103100.0,103090.0,2.42023231]
[1746794206016,0.2572855,103100.0,103090.0,2.42023231]
[1746794208114,0.37772055,103100.0,103090.0,2.26023231]
[1746794208318,0.43162055,103100.0,103090.0,2.06619801]
[1746794208921,0.43162055,103100.0,103090.0,2.26023231]
[1746794209620,0.43162055,103100.0,103090.0,2.06619801]
[1746794210026,0.48732055,103100.0,103090.0,0.56619801]
[1746794210224,0.84812055,103100.0,103090.0,0.15249801]
[1746794210924,0.84812055,103100.0,103090.0,0.09699801]
[1746794211124,0.84812055,103100.0,103090.0,1e-07]
[1746794211326,1.00812055,103100.0,103090.0,1e-07]
[1746794212935,1.08198191,103100.0,103090.0,1e-07]
[1746794213124,0.92198191,103100.0,103090.0,1e-07]
[1746794215330,1.08198191,103100.0,103090.0,1e-07]
[1746794216527,1.18080462,103100.0,103090.0,1e-07]
[1746794219230,1.02080462,103100.0,103090.0,1e-07]
[1746794220229,1.18080462,103100.0,103090.0,1e-07]
[1746794221127,1.02080462,103100.0,103090.0,1e-07]
[1746794222231,1.18080462,103100.0,103090.0,0.1070001]
[1746794222627,0.59396957,103100.0,103090.0,0.89327231]
[1746794222827,0.52010821,103100.0,103090.0,0.89327231]
[1746794223132,0.30710821,103100.0,103090.0,1.05327221]
[1746794223429,0.48134326,103100.0,103090.0,2.22579791]
[1746794223640,0.48134326,103100.0,103090.0,2.55323221]
[1746794223936,0.53254326,103100.0,103090.0,2.55523221]
[1746794224127,0.53254326,103100.0,103090.0,0.89523221]
[1746794224329,0.52854326,103100.0,103090.0,0.89523221]
[1746794224835,0.52954326,103100.0,103090.0,0.89323221]
[1746794225223,0.40910821,103100.0,103090.0,0.75983221]
[1746794225534,0.40910821,103100.0,103090.0,0.89323221]
[1746794225836,0.40910821,103100.0,103090.0,0.89223221]
[1746794226136,0.3122855,103100.0,103090.0,0.89323221]
[1746794226740,0.2580855,103100.0,103090.0,0.89323221]
[1746794229839,0.33214125,103100.0,103090.0,0.89323221]
[1746794233349,0.38604125,103100.0,103090.0,0.56579791]
[1746794233534,0.5064763,103100.0,103090.0,0.56579791]
[1746794233840,0.5609763,103100.0,103090.0,0.51189791]
[1746794234735,0.5609763,103100.0,103090.0,0.56509791]
[1746794235341,0.80134125,103100.0,103090.0,0.20429791]
[1746794235530,0.9217763,103100.0,103090.0,0.001]
[1746794235934,0.94654326,103100.0,103090.0,0.001]
[1746794236138,1.10654326,103100.0,103090.0,0.001]
[1746794236540,0.1940343,103090.0,103080.0,0.0039773]
[1746794236741,0.42416935,103090.0,103080.0,0.0039773]
[1746794236938,0.42416935,103090.0,103080.0,0.10097521]
[1746794237240,0.58416935,103090.0,103080.0,0.10097521]
[1746794237831,0.58416935,103090.0,103080.0,0.10197521]
[1746794238045,0.58816935,103090.0,103080.0,0.10197521]
[1746794238643,0.95096935,103090.0,103080.0,0.0049773]
[1746794239244,0.79096935,103090.0,103080.0,0.0049773]
[1746794239441,0.88979206,103090.0,103080.0,0.0049773]
[1746794239839,1.02303206,103090.0,103080.0,0.0049773]
[1746794240039,1.18303206,103090.0,103080.0,0.0049773]
[1746794240842,1.19030206,103090.0,103080.0,0.0049773]
[1746794241843,1.19030206,103090.0,103060.0,0.1671]
[1746794241844,1.60179171,103090.0,103060.0,0.1671]
[1746794242150,0.1940908,103060.0,103050.0,0.00543408]
[1746794242342,0.31452585,103060.0,103050.0,0.17673408]
[1746794242542,0.47632585,103060.0,103050.0,0.17673408]
[1746794242742,0.47632585,103060.0,103050.0,0.27376964]
[1746794243344,0.47632585,103060.0,103050.0,0.21696964]
[1746794243540,0.47632585,103060.0,103050.0,0.27376964]
[1746794243744,0.47632585,103060.0,103050.0,0.46787924]
[1746794243939,0.47632585,103060.0,103050.0,0.48305045]
[1746794244148,0.47732585,103060.0,103050.0,0.5002218]
[1746794244338,0.47732585,103060.0,103050.0,0.8610218]
[1746794244537,0.42212585,103060.0,103050.0,0.51459586]
[1746794244743,0.3016908,103060.0,103050.0,0.51459586]
[1746794245144,0.3016908,103060.0,103050.0,0.67459586]
[1746794245351,0.3026908,103060.0,103050.0,1.03939586]
[1746794245749,0.3026908,103060.0,103050.0,0.67859586]
[1746794245950,0.3026908,103060.0,103050.0,1.03939586]
[1746794247153,0.3026908,103060.0,103050.0,0.32448626]
[1746794247556,0.42312585,103060.0,103050.0,0.32448626]
[1746794247950,0.42312585,103060.0,103050.0,0.26768626]
[1746794248344,0.42312585,103060.0,103050.0,0.32238626]
[1746794249356,0.42312585,103060.0,103050.0,0.51649586]
[1746794249656,0.42212585,103060.0,103050.0,0.51249586]
[1746794249954,0.42212585,103060.0,103050.0,0.87329586]
[1746794250251,0.42212585,103060.0,103050.0,1.03229586]
[1746794251453,0.42212585,103060.0,103050.0,0.83818626]
[1746794251755,0.42212585,103060.0,103050.0,0.47738626]
[1746794252150,0.42212585,103060.0,103050.0,0.31738626]
[1746794253056,0.42212585,103060.0,103050.0,0.27342312]
[1746794253447,0.78292585,103060.0,103050.0,0.15892312]
[1746794254454,0.9033609,103060.0,103050.0,0.04207942]
[1746794254759,0.9033609,103060.0,103050.0,0.02690821]
[1746794255151,1.0633609,103060.0,103050.0,0.02690821]
[1746794256363,1.0633609,103060.0,103050.0,0.02691113]
[1746794256561,0.94292585,103060.0,103050.0,0.02691113]
[1746794256860,0.1941284,103040.0,103030.0,0.1068]
[1746794257060,0.67536345,103040.0,103030.0,0.1068]
[1746794257261,0.58346345,103040.0,103030.0,0.12197463]
[1746794257454,0.58346345,103040.0,103030.0,0.31612193]
[1746794257656,0.58346345,103040.0,103030.0,0.41315749]
[1746794258064,0.58446345,103040.0,103030.0,0.41715749]
[1746794258259,0.3040284,103040.0,103030.0,0.93795749]
[1746794258458,0.42446345,103040.0,103030.0,0.93795749]
[1746794258657,0.42446345,103040.0,103030.0,0.95225773]
[1746794258858,0.42446345,103040.0,103030.0,0.9522571]
[1746794259961,0.42546345,103040.0,103030.0,0.9522571]
[1746794260162,0.3050284,103040.0,103030.0,0.9522571]
[1746794260349,0.43519015,103040.0,103030.0,0.7581098]
[1746794260761,0.43519015,103040.0,103030.0,0.9522571]
[1746794261165,0.43519015,103040.0,103030.0,0.95247191]
[1746794261861,0.43519015,103040.0,103030.0,0.75832461]
[1746794262053,0.43519015,103040.0,103030.0,0.95247191]
[1746794262454,0.43519015,103040.0,103030.0,0.95247176]
[1746794262661,0.44246015,103040.0,103030.0,0.95247176]
[1746794264260,0.44246015,103040.0,103030.0,0.79247176]
[1746794264464,0.44246015,103040.0,103030.0,0.59832446]
[1746794265058,0.44246015,103040.0,103030.0,0.75832446]
[1746794265271,0.2033984,103040.0,103030.0,0.95247176]
[1746794265566,0.32383345,103040.0,103030.0,0.95247176]
[1746794265860,0.42953345,103040.0,103030.0,0.75832446]
[1746794266166,0.48653245,103040.0,103030.0,0.59832446]
[1746794267365,0.84733245,103040.0,103030.0,0.23752446]
[1746794267755,0.48653245,103040.0,103030.0,0.23752446]
[1746794267958,0.84733245,103040.0,103030.0,0.23752446]
[1746794269265,0.84733245,103040.0,103030.0,0.2526989]
[1746794269462,0.84733245,103040.0,103030.0,0.13159925]
[1746794269656,0.0485404,103030.0,103000.0,0.2598]
[1746794269860,0.31462005,103010.0,103000.0,0.4540038]
[1746794270064,0.194185,103010.0,103000.0,0.85985819]
[1746794270262,0.251685,103010.0,103000.0,1.01985819]
[1746794270462,0.251685,103010.0,103000.0,0.82565439]
[1746794270664,0.42882005,103010.0,103000.0,0.83465439]
[1746794270964,0.308385,103010.0,103000.0,0.83465439]
[1746794271160,0.311385,103010.0,103000.0,0.85056942]
[1746794271366,0.43182005,103010.0,103000.0,0.84156942]
[1746794271666,0.85322005,103010.0,103000.0,0.48976942]
[1746794272267,0.85322005,103010.0,103000.0,0.32976942]
[1746794272776,0.49242005,103010.0,103000.0,0.69056942]
[1746794272963,0.257685,103010.0,103000.0,0.88477322]
[1746794273270,0.257685,103010.0,103000.0,1.04477322]
[1746794273662,0.257685,103010.0,103000.0,1.16520827]
[1746794273863,0.0635,103010.0,103000.0,1.16520827]
[1746794274068,0.200185,103010.0,103000.0,1.16520827]
[1746794274269,0.19289988,103010.0,103000.0,1.16520827]
[1746794274969,0.19289988,103010.0,103000.0,1.04477322]
[1746794275173,0.19289988,103010.0,103000.0,1.40557322]
[1746794275367,0.19289988,103010.0,103000.0,1.04477322]
[1746794275567,0.24649988,103010.0,103000.0,1.04477322]
[1746794276066,0.24649988,103010.0,103000.0,1.40557322]
[1746794277176,0.19289988,103010.0,103000.0,1.40557322]
[1746794279178,0.24769988,103010.0,103000.0,1.40557322]
[1746794281571,0.24769988,103010.0,103000.0,1.2082064]
[1746794281572,0.36813493,103010.0,103000.0,1.2082064]
[1746794281780,0.42273493,103010.0,103000.0,1.2082064]
[1746794282075,0.42273493,103010.0,103000.0,1.2082067]
[1746794282575,0.24769988,103010.0,103000.0,1.2082067]
[1746794282774,0.3398168,103020.0,103010.0,0.194185]
[1746794283076,0.2912712,103020.0,103010.0,0.80093848]
[1746794283479,0.3461712,103020.0,103010.0,0.89802114]
[1746794283684,0.34131496,103020.0,103010.0,0.89802114]
[1746794283879,0.34131496,103020.0,103010.0,0.89801932]
[1746794284178,0.1941808,103020.0,103010.0,1.01845437]
[1746794284382,0.1961808,103020.0,103010.0,1.02945437]
[1746794284679,0.1981808,103020.0,103010.0,0.90901932]
[1746794284974,0.19089694,103020.0,103010.0,0.90901932]
[1746794285673,0.19089694,103020.0,103010.0,0.89384425]
[1746794285879,0.19089694,103020.0,103010.0,0.90901898]
[1746794286580,0.004,103020.0,103010.0,1.02945403]
[1746794286771,0.1981661,103020.0,103010.0,1.04205898]
[1746794286972,0.2515661,103020.0,103010.0,1.04205898]
[1746794287276,0.2515661,103020.0,103010.0,1.09385898]
[1746794287471,0.9069362,103020.0,103010.0,0.29843398]
[1746794287676,0.9637362,103020.0,103010.0,0.29843398]
[1746794287981,0.48250115,103020.0,103010.0,0.49261898]
[1746794288173,0.48250115,103020.0,103010.0,0.29843398]
[1746794288579,0.48250115,103020.0,103010.0,0.49261898]
[1746794288981,0.48250115,103020.0,103010.0,0.90651898]
[1746794289482,0.48250115,103020.0,103010.0,0.90652089]
[1746794290571,0.48250115,103020.0,103010.0,0.85342089]
[1746794290974,0.48250115,103020.0,103010.0,0.65923589]
[1746794291182,0.48250115,103020.0,103010.0,0.85342089]
[1746794291979,0.6029362,103020.0,103010.0,0.29843589]
[1746794292176,0.6029362,103020.0,103010.0,0.04135323]
[1746794292482,0.48250115,103020.0,103010.0,0.04135323]
[1746794292881,0.48250115,103020.0,103010.0,0.23553865]
[1746794293080,0.48250115,103020.0,103010.0,0.04135365]
[1746794293275,0.48250115,103020.0,103010.0,0.20135365]
[1746794294271,0.48250115,103020.0,103010.0,0.04135365]
[1746794295085,0.48250115,103020.0,103010.0,0.20135365]
[1746794296172,0.48250115,103020.0,103010.0,0.23553865]
[1746794296378,0.3052661,103020.0,103010.0,0.80211146]
[1746794297293,0.3052661,103020.0,103010.0,0.96211146]
[1746794298187,0.3052661,103020.0,103010.0,0.96211111]
[1746794298578,0.42570115,103020.0,103010.0,0.96211111]
[1746794299681,0.42084477,103020.0,103010.0,0.96211111]
[1746794300688,0.30040972,103020.0,103010.0,0.96211111]
[1746794300987,0.42812477,103020.0,103010.0,0.96211111]
[1746794301287,0.30768972,103020.0,103010.0,0.96211111]
[1746794301787,0.30768972,103020.0,103010.0,0.96211089]
[1746794302786,0.25398972,103020.0,103010.0,1.08254594]
[1746794303087,0.25398972,103020.0,103010.0,2.71550594]
[1746794303289,0.06068,103020.0,103010.0,2.71550594]
[1746794303480,0.2014461,103020.0,103010.0,2.71550594]
[1746794303681,0.2563461,103020.0,103010.0,2.59507089]
[1746794304383,0.3119461,103020.0,103010.0,2.59507089]
[1746794307088,0.3119461,103020.0,103010.0,2.59506939]
[1746794308994,0.3119461,103020.0,103010.0,2.5950694]
[1746794310489,0.3119461,103020.0,103010.0,2.5890694]
[1746794310691,0.3139461,103020.0,103010.0,2.5940694]
[1746794310890,0.3139461,103020.0,103010.0,2.59406929]
[1746794314096,0.2583461,103020.0,103010.0,2.71450434]
[1746794314292,0.06418,103020.0,103010.0,2.71450434]
[1746794314487,0.291239,103030.0,103020.0,0.1941661]
[1746794314794,0.343939,103030.0,103020.0,0.85587555]
[1746794314987,0.343939,103030.0,103020.0,0.75061709]
[1746794315189,0.343939,103030.0,103020.0,1.0076809]
[1746794315506,0.399439,103030.0,103020.0,1.0076809]
[1746794316397,0.51987405,103030.0,103020.0,1.0076809]
[1746794317198,0.52087405,103030.0,103020.0,0.9955065]
[1746794317412,0.52187405,103030.0,103020.0,1.01368084]
[1746794317696,0.52187405,103030.0,103020.0,0.9985065]
[1746794318000,0.52187405,103030.0,103020.0,1.01368086]
[1746794318191,0.52187405,103030.0,103020.0,0.85368083]
[1746794318900,0.401439,103030.0,103020.0,0.85368083]
[1746794319097,0.52187405,103030.0,103020.0,0.85368083]
[1746794319289,0.52187405,103030.0,103020.0,1.01368083]
[1746794320198,0.52187405,103030.0,103020.0,0.85368083]
[1746794320798,0.401439,103030.0,103020.0,0.85368083]
[1746794323103,0.401439,103030.0,103020.0,1.01368083]
[1746794325002,0.401439,103030.0,103020.0,1.01368082]
[1746794325802,0.39658322,103030.0,103020.0,1.01368082]
[1746794326201,0.39658322,103030.0,103020.0,0.85368082]
[1746794326802,0.39658322,103030.0,103020.0,0.85368074]
[1746794327106,0.28838322,103030.0,103020.0,1.01368074]
[1746794327399,0.29464462,103030.0,103020.0,1.13411579]
[1746794327607,0.29464462,103030.0,103020.0,2.63411579]
[1746794328602,0.2509624,103030.0,103020.0,2.63411523]
[1746794328901,0.47569006,103040.0,103030.0,0.1941473]
[1746794329105,0.47569006,103040.0,103030.0,0.81138098]
[1746794329607,0.47569006,103040.0,103030.0,0.92362138]
[1746794330311,0.47569006,103040.0,103030.0,1.08562102]
[1746794331207,0.47569006,103040.0,103030.0,1.08762102]
[1746794331410,0.47669006,103040.0,103030.0,1.08762102]
[1746794331800,0.48660142,103040.0,103030.0,1.08762102]
[1746794332003,0.54330142,103040.0,103030.0,1.08762102]
[1746794333211,0.66373647,103040.0,103030.0,0.89347372]
[1746794333411,0.66373647,103040.0,103030.0,1.08762102]
[1746794333910,0.66373647,103040.0,103030.0,0.70821397]
[1746794334102,0.66373647,103040.0,103030.0,0.54821397]
[1746794334412,0.66373647,103040.0,103030.0,0.49221397]
[1746794336014,0.66373647,103040.0,103030.0,0.49021397]
[1746794336218,0.66373647,103040.0,103030.0,0.49121397]
[1746794337015,0.66273647,103040.0,103030.0,0.48921397]
[1746794337220,0.66273647,103040.0,103030.0,0.49021397]
[1746794337421,0.65546647,103040.0,103030.0,0.49021397]
[1746794337916,0.65546647,103040.0,103030.0,0.12941397]
[1746794338120,0.65546647,103040.0,103030.0,0.49021397]
[1746794341115,0.65546647,103040.0,103030.0,0.74126157]
[1746794341316,0.65546647,103040.0,103030.0,0.54711427]
[1746794341718,0.69339678,103040.0,103030.0,0.54711427]
[1746794342025,0.70066678,103040.0,103030.0,0.54711427]
[1746794342713,0.6214841,103040.0,103030.0,0.54711427]
[1746794343125,0.70066678,103040.0,103030.0,0.54711427]
[1746794343528,0.75736678,103040.0,103030.0,0.54711427]
[1746794345931,0.59900142,103040.0,103030.0,0.54711427]
[1746794346229,0.75736678,103040.0,103030.0,0.54711427]
[1746794346416,0.75736678,103040.0,103030.0,0.60091427]
[1746794347626,0.75736678,103040.0,103030.0,0.24011427]
[1746794348328,0.75736678,103040.0,103030.0,0.43426157]
[1746794349227,0.75736678,103040.0,103030.0,0.49116157]
[1746794349533,0.75736678,103040.0,103030.0,0.29701427]
[1746794350728,0.66827274,103040.0,103030.0,0.85196157]
[1746794351222,0.53239006,103040.0,103030.0,0.85196157]
[1746794351427,0.61157274,103040.0,103030.0,0.85196157]
[1746794352126,0.61157274,103040.0,103030.0,1.01196157]
[1746794353728,0.42099006,103040.0,103030.0,1.09114425]
[1746794354230,0.42099006,103040.0,103030.0,1.01196157]
[1746794354823,0.41613481,103040.0,103030.0,1.01196157]
[1746794355322,0.41613481,103040.0,103030.0,1.01196012]
[1746794355826,0.31906541,103040.0,103030.0,1.01196012]
[1746794356021,0.31906541,103040.0,103030.0,1.0911428]
[1746794356924,0.31906541,103040.0,103030.0,1.10192215]
[1746794357927,0.31178283,103040.0,103030.0,1.10192215]
[1746794359526,0.49235287,103050.0,103040.0,0.1941284]
[1746794359728,0.43835287,103050.0,103040.0,0.82316017]
[1746794359934,0.49285287,103050.0,103040.0,0.87906017]
[1746794360134,0.49285287,103050.0,103040.0,0.97610515]
[1746794360325,0.49285287,103050.0,103040.0,2.49128174]
[1746794360525,0.49285287,103050.0,103040.0,2.49128065]
[1746794360834,0.49485287,103050.0,103040.0,2.49228065]
[1746794361734,0.49685287,103050.0,103040.0,2.49228065]
[1746794363134,0.49485287,103050.0,103040.0,2.65228065]
[1746794363435,0.3962158,103050.0,103040.0,2.65228065]
[1746794363729,0.3962158,103050.0,103040.0,2.65128065]
[1746794364033,0.3952158,103050.0,103040.0,2.65128065]
[1746794364225,0.3952158,103050.0,103040.0,2.49128065]
[1746794364936,0.3952158,103050.0,103040.0,2.49528065]
[1746794368326,0.4484158,103050.0,103040.0,2.49528065]
[1746794369539,0.4484158,103050.0,103040.0,2.49525185]
[1746794371342,0.5026158,103050.0,103040.0,2.49525185]
[1746794372436,1.02178116,103050.0,103040.0,0.19904345]
[1746794372637,1.02178116,103050.0,103040.0,0.14214345]
[1746794373140,1.18178116,103050.0,103040.0,0.04509847]
[1746794373333,1.10259848,103050.0,103040.0,0.23922687]
[1746794373530,0.74179848,103050.0,103040.0,0.33627185]
[1746794373835,0.74179848,103050.0,103040.0,0.74977185]
[1746794374036,0.6626158,103050.0,103040.0,0.74977185]
[1746794374235,0.58179848,103050.0,103040.0,0.74977185]
[1746794375742,0.62324397,103050.0,103040.0,0.74977185]
[1746794376037,0.62324397,103050.0,103040.0,0.38897185]
[1746794378542,0.62324397,103050.0,103040.0,0.36304997]
[1746794378743,0.62324397,103050.0,103040.0,0.38913916]
[1746794379128,0.62324397,103050.0,103040.0,0.33643916]
[1746794379341,0.62324397,103050.0,103040.0,0.33644024]
[1746794379542,0.62324397,103050.0,103040.0,0.33644035]
[1746794380046,0.62324397,103050.0,103040.0,0.32126785]
[1746794380242,0.62324397,103050.0,103040.0,0.38252236]
[1746794380647,0.62324397,103050.0,103040.0,0.1423127]
[1746794380939,0.62324397,103050.0,103040.0,0.3364411]
[1746794382045,0.62324397,103050.0,103040.0,0.32126451]
[1746794382544,0.62324397,103050.0,103040.0,0.12713611]
[1746794383141,0.78324397,103050.0,103040.0,0.68206451]
[1746794383350,0.78324397,103050.0,103040.0,0.80269268]
[1746794383351,0.2687,103050.0,103040.0,0.80269268]
[1746794383648,0.161,103050.0,103040.0,1.06289268]
[1746794383843,0.161,103050.0,103040.0,2.56289268]
[1746794383844,0.25963707,103050.0,103040.0,2.56289268]
[1746794384039,0.18689839,103060.0,103050.0,0.1941096]
[1746794384243,0.13079839,103060.0,103050.0,1.0071948]
[1746794384449,0.32488919,103060.0,103050.0,1.0071948]
[1746794384643,0.32488919,103060.0,103050.0,1.10423978]
[1746794385749,0.32588919,103060.0,103050.0,1.10423978]
[1746794385951,0.38138919,103060.0,103050.0,1.10423978]
[1746794386148,0.38138919,103060.0,103050.0,1.26423978]
[1746794386740,0.38138919,103060.0,103050.0,1.15878401]
[1746794386946,0.38138919,103060.0,103050.0,1.27941218]
[1746794387154,0.38138919,103060.0,103050.0,1.10984628]
[1746794387343,0.38138919,103060.0,103050.0,1.11384628]
[1746794387545,0.2588608,103060.0,103050.0,1.11784628]
[1746794388058,0.2033608,103060.0,103050.0,1.11784628]
[1746794388261,0.2575608,103060.0,103050.0,1.11784628]
[1746794388551,0.43548897,103060.0,103050.0,0.99713811]
[1746794388745,0.49198897,103060.0,103050.0,0.14630851]
[1746794389141,0.65198897,103060.0,103050.0,0.70121811]
[1746794389342,0.65198897,103060.0,103050.0,0.39731811]
[1746794389940,0.65198897,103060.0,103050.0,0.20320851]
[1746794390142,0.49198897,103060.0,103050.0,0.14630851]
[1746794391248,0.65198897,103060.0,103050.0,0.14630851]
[1746794393255,0.65198897,103060.0,103050.0,0.34041811]
[1746794393450,0.65198897,103060.0,103050.0,0.39311811]
[1746794393753,0.64471897,103060.0,103050.0,0.14630851]
[1746794394747,0.64471897,103060.0,103050.0,0.14630543]
[1746794396458,0.64471897,103060.0,103050.0,0.34041503]
[1746794396958,0.64471897,103060.0,103050.0,0.86501503]
[1746794397155,0.49198897,103060.0,103050.0,0.86501503]
[1746794397655,0.49198897,103060.0,103050.0,0.50421503]
[1746794398157,0.49198897,103060.0,103050.0,0.50421358]
[1746794398549,0.49198897,103060.0,103050.0,0.31010398]
[1746794398751,0.49198897,103060.0,103050.0,0.20370398]
[1746794400755,0.49198897,103060.0,103050.0,0.14630398]
[1746794400959,0.49198897,103060.0,103050.0,0.049259]
[1746794401161,0.65198897,103060.0,103050.0,0.049259]
[1746794401459,1.01278897,103060.0,103050.0,0.049259]
[1746794405061,1.01178897,103060.0,103050.0,0.046259]
[1746794405561,1.01178897,103060.0,103050.0,0.04626026]
[1746794406056,1.01078897,103060.0,103050.0,0.04226026]
[1746794406265,1.01078897,103060.0,103050.0,0.04326026]
[1746794407057,1.01078897,103060.0,103050.0,0.04327326]
[1746794408764,1.01078897,103060.0,103050.0,0.04327425]
[1746794410354,1.01078897,103060.0,103050.0,0.02810198]
[1746794410559,1.01078897,103060.0,103050.0,0.04327382]
[1746794414166,0.85078897,103060.0,103050.0,0.04327382]
[1746794414366,0.85078897,103060.0,103050.0,0.09737382]
[1746794415059,0.85078897,103060.0,103050.0,0.04327382]
[1746794415459,0.97141714,103060.0,103050.0,0.02710142]
[1746794415767,0.1941284,103040.0,103030.0,0.3069473]
[1746794415960,0.31475657,103040.0,103030.0,0.3640473]
[1746794416154,0.48085657,103040.0,103030.0,0.5240473]
[1746794416367,0.84165657,103040.0,103030.0,0.5240473]
[1746794416556,0.84165657,103040.0,103030.0,0.8848473]
[1746794416557,0.48085657,103040.0,103030.0,0.8848473]
[1746794416763,0.48085657,103040.0,103030.0,0.98190169]
[1746794417365,0.48085657,103040.0,103030.0,0.82190169]
[1746794417561,0.3602284,103040.0,103030.0,0.82190169]
[1746794417759,0.1941284,103040.0,103030.0,0.95374169]
[1746794417958,0.1951284,103040.0,103030.0,0.95874169]
[1746794418168,0.1951284,103040.0,103030.0,1.23936986]
[1746794418462,0.1961284,103040.0,103030.0,1.24336986]
[1746794418660,0.1961284,103040.0,103030.0,1.12274169]
[1746794418661,0.2524284,103040.0,103030.0,1.12274169]
[1746794419469,0.24757317,103040.0,103030.0,1.12274169]
[1746794425177,0.24757317,103040.0,103030.0,2.62274169]
[1746794425473,0.30277317,103040.0,103030.0,2.62274169]
[1746794425674,0.31234736,103040.0,103030.0,2.62274169]
[1746794426178,0.30277317,103040.0,103030.0,2.62274169]
[1746794427580,0.30277317,103040.0,103030.0,2.64869431]
[1746794428183,0.42340134,103040.0,103030.0,2.6638671]
[1746794429179,0.30277317,103040.0,103030.0,2.6638671]
[1746794430480,0.30277317,103040.0,103030.0,2.3378798]
[1746794430481,0.42340134,103040.0,103030.0,2.3378798]
[1746794430779,0.79389348,103040.0,103030.0,0.4770798]
[1746794430975,0.48869348,103040.0,103030.0,0.4770798]
[1746794431175,0.48869348,103040.0,103030.0,1.8170798]
[1746794433083,0.48869348,103040.0,103030.0,1.97707791]
[1746794434275,0.48869348,103040.0,103030.0,1.81707791]
[1746794435081,0.48869348,103040.0,103030.0,1.97707791]
[1746794437777,0.43309348,103040.0,103030.0,1.97707791]
[1746794437982,0.31246531,103040.0,103030.0,1.97707791]
[1746794438170,0.30277317,103040.0,103030.0,2.01122521]
[1746794438374,0.19127317,103040.0,103030.0,2.50342339]
[1746794438878,0.19127317,103040.0,103030.0,2.60342339]
[1746794439071,0.17913597,103040.0,103030.0,2.76342339]
[1746794439676,0.002,103040.0,103030.0,2.76342339]
[1746794439879,0.002,103040.0,103030.0,1.36047939]
[1746794440280,0.1961284,103040.0,103030.0,2.86047939]
[1746794440676,0.1961284,103040.0,103030.0,2.84530663]
[1746794440878,0.1961284,103040.0,103030.0,2.84970732]
[1746794441386,0.1961284,103040.0,103030.0,2.76047548]
[1746794441686,0.1961284,103040.0,103030.0,2.63984749]
[1746794442185,0.1961284,103040.0,103030.0,2.62467587]
[1746794442386,0.1961284,103040.0,103030.0,2.65061478]
[1746794443483,0.1961284,103040.0,103030.0,2.55355878]
[1746794444274,0.1961284,103040.0,103030.0,1.18515878]
[1746794444481,0.37075657,103040.0,103030.0,0.85941148]